fUSD/lending_fUSD_20241107
["ID","MTS","AMOUNT","RATE_DAILY","PERIOD"]
[341586617,1731011438387,-500.0,0.00027397,2]
[341586618,1731011438397,-500.0,0.00027397,2]
[341586619,1731011438407,-500.0,0.00027397,2]
[341586620,1731011438417,-500.0,0.00027397,2]
[341586621,1731011438427,-664.88,0.00027397,2]
[341586622,1731011438438,-500.0,0.00027397,2]
[341586623,1731011438448,-842.0,0.00027397,2]
[341586624,1731011438457,-500.0,0.00027397,2]
[341586625,1731011438469,-500.0,0.00027397,2]
[341586626,1731011438479,-500.0,0.00027397,2]
[341586627,1731011438488,-500.0,0.00027397,2]
[341586628,1731011438498,-500.0,0.00027397,2]
[341586629,1731011438507,-500.0,0.00027397,2]
[341586630,1731011438517,-500.0,0.00027397,2]
[341586631,1731011438526,-500.0,0.00027397,2]
[341586632,1731011438536,-335.29973532,0.00027397,2]
[341586633,1731011438545,-500.0,0.00027397,2]
[341586634,1731011438555,-500.0,0.00027397,2]
[341586635,1731011438564,-500.0,0.00027397,2]
[341586636,1731011438573,-500.0,0.00027397,2]
[341586637,1731011438584,-500.0,0.00027397,2]
[341586638,1731011438594,-500.0,0.00027397,2]
[341586639,1731011438605,-500.0,0.00027397,2]
[341586640,1731011438615,-500.0,0.00027397,2]
[341586641,1731011438625,-500.0,0.00027397,2]
[341586642,1731011438635,-849.33,0.00027397,2]
[341586643,1731011438646,-500.0,0.00027397,2]
[341586644,1731011438656,-500.0,0.00027397,2]
[341586645,1731011438666,-500.0,0.00027397,2]
[341586646,1731011438676,-500.0,0.00027397,2]
[341586647,1731011438686,-500.0,0.00027397,2]
[341586648,1731011438696,-1146.86,0.00027397,2]
[341586649,1731011438706,-500.0,0.00027397,2]
[341586650,1731011438716,-500.0,0.00027397,2]
[341586651,1731011438726,-500.0,0.00027397,2]
[341586652,1731011438736,-2367.1,0.00027397,2]
[341586653,1731011438746,-812.73,0.00027397,2]
[341586654,1731011438756,-500.0,0.00027397,2]
[341586655,1731011438765,-500.0,0.00027397,2]
[341586656,1731011438775,-505.41,0.00027397,2]
[341586657,1731011438784,-500.0,0.00027397,2]
[341586658,1731011438794,-500.0,0.00027397,2]
[341586659,1731011438804,-859.78,0.00027397,2]
[341586660,1731011438813,-500.0,0.00027397,2]
[341586661,1731011438823,-1030.59,0.00027397,2]
[341586662,1731011438832,-500.0,0.00027397,2]
[341586663,1731011438843,-500.0,0.00027397,2]
[341586664,1731011438854,-500.0,0.00027397,2]
[341586665,1731011438864,-500.0,0.00027397,2]
[341586666,1731011438874,-500.0,0.00027397,2]
[341586667,1731011438884,-500.0,0.00027397,2]
[341586668,1731011438894,-1049.18,0.00027397,2]
[341586669,1731011438903,-500.0,0.00027397,2]
[341586670,1731011438913,-758.06,0.00027397,2]
[341586671,1731011438923,-500.0,0.00027397,2]
[341586672,1731011438933,-500.0,0.00027397,2]
[341586673,1731011438944,-584.38,0.00027397,2]
[341586674,1731011438956,-500.0,0.00027397,2]
[341586675,1731011438966,-500.0,0.00027397,2]
[341586676,1731011438975,-795.48,0.00027397,2]
[341586677,1731011438985,-227.72900301,0.00027397,2]
[341586678,1731011438995,-772.33,0.00027397,2]
[341586679,1731011439005,-500.0,0.00027397,2]
[341586680,1731011439015,-500.0,0.00027397,2]
[341586681,1731011439027,-500.0,0.00027397,2]
[341586682,1731011439037,-500.0,0.00027397,2]
[341586683,1731011439047,-500.0,0.00027397,2]
[341586684,1731011439057,-235.57141328,0.00027397,2]
[341586685,1731011439067,-500.0,0.00027397,2]
[341586686,1731011439076,-826.25,0.00027397,2]
[341586687,1731011439086,-500.0,0.00027397,2]
[341586688,1731011439095,-500.0,0.00027397,2]
[341586689,1731011439107,-500.0,0.00027397,2]
[341586690,1731011439116,-922.87,0.00027397,2]
[341586691,1731011439126,-500.0,0.00027397,2]
[341586692,1731011439135,-500.0,0.00027397,2]
[341586693,1731011439145,-500.0,0.00027397,2]
[341586694,1731011439154,-570.07,0.00027397,2]
[341586695,1731011439164,-500.0,0.00027397,2]
[341586696,1731011439173,-990.65,0.00027397,2]
[341586697,1731011439183,-500.0,0.00027397,2]
[341586698,1731011439193,-1391.61,0.00027397,2]
[341586699,1731011439271,-500.0,0.00027397,2]
[341586700,1731011439321,-500.0,0.00027397,2]
[341586701,1731011439330,-962.46,0.00027397,2]
[341586702,1731011439340,-500.0,0.00027397,2]
[341586703,1731011439351,-500.0,0.00027397,2]
[341586704,1731011439361,-525.18,0.00027397,2]
[341586705,1731011439370,-500.0,0.00027397,2]
[341586706,1731011439380,-746.75,0.00027397,2]
[341586707,1731011439390,-500.0,0.00027397,2]
[341586708,1731011439399,-505.67493409,0.00027397,2]
[341586709,1731011439409,-500.0,0.00027397,2]
[341586710,1731011439418,-500.0,0.00027397,2]
[341586711,1731011439428,-500.0,0.00027397,2]
[341586712,1731011439438,-500.0,0.00027397,2]
[341586713,1731011439447,-500.0,0.00027397,2]
[341586714,1731011439456,-500.0,0.00027397,2]
[341586715,1731011439466,-500.0,0.00027397,2]
[341586716,1731011439475,-500.0,0.00027397,2]
[341586717,1731011439484,-500.0,0.00027397,2]
[341586718,1731011439493,-623.38,0.00027397,2]
[341586719,1731011439503,-454.58351534,0.00027397,2]
[341586720,1731011439512,-500.0,0.00027397,2]
[341586721,1731011439523,-279.00984022,0.00027397,2]
[341586723,1731011439532,-500.0,0.00027397,2]
[341586724,1731011439542,-500.0,0.00027397,2]
[341586726,1731011439552,-1391.91,0.00027397,2]
[341586728,1731011439561,-500.0,0.00027397,2]
[341586730,1731011439571,-500.0,0.00027397,2]
[341586731,1731011439581,-552.0010141,0.00027397,2]
[341586732,1731011439591,-500.0,0.00027397,2]
[341586733,1731011439602,-513.5,0.00027397,2]
[341586734,1731011439611,-500.0,0.00027397,2]
[341586735,1731011439621,-500.0,0.00027397,2]
[341586736,1731011439630,-500.0,0.00027397,2]
[341586737,1731011439639,-500.0,0.00027397,2]
[341586738,1731011439648,-500.0,0.00027397,2]
[341586739,1731011439658,-500.0,0.00027397,2]
[341586740,1731011439667,-500.0,0.00027397,2]
[341586741,1731011439676,-500.0,0.00027397,2]
[341586742,1731011439685,-500.0,0.00027397,2]
[341586743,1731011439694,-500.0,0.00027397,2]
[341586744,1731011439703,-500.0,0.00027397,2]
[341586745,1731011439713,-500.0,0.00027397,2]
[341586746,1731011439722,-741.21,0.00027397,2]
[341586747,1731011439732,-500.0,0.00027397,2]
[341586748,1731011439742,-500.0,0.00027397,2]
[341586749,1731011439752,-500.0,0.00027397,2]
[341586750,1731011439762,-632.28,0.00027397,2]
[341586751,1731011439773,-708.91,0.00027397,2]
[341586752,1731011439783,-782.76,0.00027397,2]
[341586753,1731011439792,-500.0,0.00027397,2]
[341586754,1731011439801,-500.0,0.00027397,2]
[341586755,1731011439810,-358.9,0.00027397,2]
[341586756,1731011439819,-500.0,0.00027397,2]
[341586757,1731011439829,-602.34,0.00027397,2]
[341586758,1731011439838,-500.0,0.00027397,2]
[341586759,1731011439847,-500.0,0.00027397,2]
[341586760,1731011439858,-500.0,0.00027397,2]
[341586761,1731011439867,-500.0,0.00027397,2]
[341586762,1731011439877,-500.45,0.00027397,2]
[341586763,1731011439886,-500.0,0.00027397,2]
[341586764,1731011439896,-408.04920142,0.00027397,2]
[341586767,1731011440723,-91.95079858,0.00027397,2]
[341586768,1731011440733,-500.0,0.00027397,2]
[341586769,1731011440743,-598.38149564,0.00027397,2]
[341586770,1731011440752,-500.0,0.00027397,2]
[341586771,1731011440762,-500.0,0.00027397,2]
[341586772,1731011440772,-500.0,0.00027397,2]
[341586773,1731011440781,-500.0,0.00027397,2]
[341586774,1731011440791,-500.0,0.00027397,2]
[341586775,1731011440800,-500.0,0.00027397,2]
[341586776,1731011440810,-500.0,0.00027397,2]
[341586777,1731011440819,-513.55,0.00027397,2]
[341586778,1731011440829,-500.0,0.00027397,2]
[341586779,1731011440838,-500.0,0.00027397,2]
[341586780,1731011440847,-291.57379536,0.00027397,2]
[341586781,1731011440858,-500.0,0.00027397,2]
[341586782,1731011440867,-500.0,0.00027397,2]
[341586783,1731011440877,-500.0,0.00027397,2]
[341586784,1731011440888,-624.29,0.00027397,2]
[341586785,1731011440899,-847.49,0.00027397,2]
[341586786,1731011440909,-500.0,0.00027397,2]
[341586787,1731011440918,-500.0,0.00027397,2]
[341586788,1731011440927,-627.61,0.00027397,2]
[341586789,1731011440937,-500.0,0.00027397,2]
[341586790,1731011440950,-500.0,0.00027397,2]
[341586791,1731011440960,-110.69194244,0.00027397,2]
[341586792,1731011440973,-389.30805756,0.00027397,2]
[341586793,1731011440983,-500.0,0.00027397,2]
[341586794,1731011440992,-667.07832138,0.00027397,2]
[341586795,1731011441004,-91.02167862,0.00027397,2]
[341586796,1731011441014,-500.0,0.00027397,2]
[341586797,1731011441026,-500.0,0.00027397,2]
[341586798,1731011441036,-233.61903138,0.00027397,2]
[341586799,1731011441046,-500.0,0.00027397,2]
[341586800,1731011441055,-500.0,0.00027397,2]
[341586801,1731011441066,-500.0,0.00027397,2]
[341586802,1731011441075,-500.0,0.00027397,2]
[341586803,1731011441084,-500.0,0.00027397,2]
[341586804,1731011441094,-500.0,0.00027397,2]
[341586805,1731011441104,-500.0,0.00027397,2]
[341586806,1731011441114,-500.0,0.00027397,2]
[341586807,1731011441124,-521.08,0.00027397,2]
[341586808,1731011441133,-500.0,0.00027397,2]
[341586809,1731011441142,-1032.51,0.00027397,2]
[341586810,1731011441152,-500.0,0.00027397,2]
[341586811,1731011441162,-500.0,0.00027397,2]
[341586812,1731011441172,-500.0,0.00027397,2]
[341586813,1731011441181,-500.0,0.00027397,2]
[341586814,1731011441191,-500.0,0.00027397,2]
[341586815,1731011441201,-500.0,0.00027397,2]
[341586816,1731011441210,-512.03,0.00027397,2]
[341586817,1731011441220,-633.18,0.00027397,2]
[341586818,1731011441229,-1373.98,0.00027397,2]
[341586819,1731011441238,-500.0,0.00027397,2]
[341586820,1731011441248,-500.0,0.00027397,2]
[341586821,1731011441257,-500.0,0.00027397,2]
[341586822,1731011441267,-500.0,0.00027397,2]
[341586823,1731011441277,-248.7654716,0.00027397,2]
[341586824,1731011441287,-500.0,0.00027397,2]
[341586825,1731011441296,-500.0,0.00027397,2]
[341586826,1731011441306,-692.91,0.00027397,2]
[341586827,1731011441315,-1047.6,0.00027397,2]
[341586828,1731011441325,-500.0,0.00027397,2]
[341586829,1731011441334,-730.81,0.00027397,2]
[341586830,1731011441343,-500.0,0.00027397,2]
[341586831,1731011441355,-500.0,0.00027397,2]
[341586832,1731011441364,-1016.41,0.00027397,2]
[341586833,1731011441373,-1016.1,0.00027397,2]
[341586834,1731011441383,-1860.33,0.00027397,2]
[341586835,1731011441392,-1639.847469,0.00027397,2]
[341586836,1731011441401,-500.0,0.00027397,2]
[341586837,1731011441410,-500.0,0.00027397,2]
[341586838,1731011441421,-500.0,0.00027397,2]
[341586839,1731011441431,-602.92,0.00027397,2]
[341586840,1731011441440,-500.0,0.00027397,2]
[341586841,1731011441450,-500.0,0.00027397,2]
[341586842,1731011441459,-299.45605072,0.00027397,2]
[341586843,1731011441468,-153.0341709,0.00027397,2]
[341586844,1731011441478,-500.0,0.00027397,2]
[341586845,1731011441487,-500.0,0.00027397,2]
[341586846,1731011441496,-1864.69,0.00027397,2]
[341586847,1731011441506,-1880.48,0.00027397,2]
[341586848,1731011441515,-500.0,0.00027397,2]
[341586849,1731011441524,-500.0,0.00027397,2]
[341586850,1731011441533,-1023.36,0.00027397,2]
[341586851,1731011441542,-500.0,0.00027397,2]
[341586852,1731011441551,-759.25,0.00027397,2]
[341586853,1731011441560,-1882.14,0.00027397,2]
[341586854,1731011441570,-500.0,0.00027397,2]
[341586855,1731011441579,-984.672504,0.00027397,2]
[341586856,1731011441588,-12863.27,0.00027397,2]
[341586857,1731011441597,-500.0,0.00027397,2]
[341586858,1731011441608,-810.01,0.00027397,2]
[341586859,1731011441617,-529.48,0.00027397,2]
[341586860,1731011441626,-500.0,0.00027397,2]
[341586861,1731011441635,-741.68,0.00027397,2]
[341586862,1731011441644,-1287.22,0.00027397,2]
[341586863,1731011441653,-500.0,0.00027397,2]
[341586864,1731011441662,-504.3,0.00027397,2]
[341586865,1731011441671,-1180.37,0.00027397,2]
[341586866,1731011441680,-500.0,0.00027397,2]
[341586867,1731011441690,-844.4,0.00027397,2]
[341586868,1731011441699,-803.88,0.00027397,2]
[341586869,1731011441708,-500.0,0.00027397,2]
[341586870,1731011441718,-500.0,0.00027397,2]
[341586871,1731011441727,-500.0,0.00027397,2]
[341586872,1731011441736,-500.0,0.00027397,2]
[341586873,1731011441746,-500.0,0.00027397,2]
[341586874,1731011441755,-542.4,0.00027397,2]
[341586875,1731011441764,-794.89,0.00027397,2]
[341586876,1731011441773,-500.0,0.00027397,2]
[341586877,1731011441783,-4019.74,0.00027397,2]
[341586878,1731011441792,-500.0,0.00027397,2]
[341586879,1731011441801,-759.28,0.00027397,2]
[341586880,1731011441811,-500.0,0.00027397,2]
[341586881,1731011441821,-652.81,0.00027397,2]
[341586882,1731011441831,-3623.88,0.00027397,2]
[341586883,1731011441841,-376.29822726,0.00027397,2]
[341586884,1731011441852,-706.87,0.00027397,2]
[341586885,1731011441870,-1354.3,0.00027397,2]
[341586886,1731011441879,-576.29,0.00027397,2]
[341586887,1731011441889,-534.58,0.00027397,2]
[341586888,1731011441899,-511.69,0.00027397,2]
[341586889,1731011441909,-500.0,0.00027397,2]
[341586890,1731011441919,-1135.74,0.00027397,2]
[341586891,1731011441928,-500.0,0.00027397,2]
[341586892,1731011441937,-3829.5,0.00027397,2]
[341586893,1731011441949,-500.0,0.00027397,2]
[341586894,1731011441958,-532.84,0.00027397,2]
[341586895,1731011441968,-1210.85,0.00027397,2]
[341586896,1731011441977,-2233.74,0.00027397,2]
[341586897,1731011441987,-1569.08,0.00027397,2]
[341586898,1731011441997,-2095.57,0.00027397,2]
[341586899,1731011442006,-500.0,0.00027397,2]
[341586900,1731011442017,-500.0,0.00027397,2]
[341586901,1731011442028,-500.0,0.00027397,2]
[341586902,1731011442038,-993.67,0.00027397,2]
[341586903,1731011442048,-500.0,0.00027397,2]
[341586904,1731011442058,-1109.47,0.00027397,2]
[341586905,1731011442067,-1076.61,0.00027397,2]
[341586906,1731011442077,-2427.73,0.00027397,2]
[341586907,1731011442086,-500.0,0.00027397,2]
[341586908,1731011442095,-822.66,0.00027397,2]
[341586909,1731011442108,-810.32,0.00027397,2]
[341586910,1731011442118,-822.49,0.00027397,2]
[341586911,1731011442127,-534.98,0.00027397,2]
[341586912,1731011442136,-500.0,0.00027397,2]
[341586913,1731011442146,-1190.75,0.00027397,2]
[341586914,1731011442155,-860.77,0.00027397,2]
[341586915,1731011442165,-500.0,0.00027397,2]
[341586916,1731011442177,-620.7,0.00027397,2]
[341586917,1731011442187,-500.0,0.00027397,2]
[341586918,1731011442198,-500.0,0.00027397,2]
[341586919,1731011442207,-530.71369552,0.00027397,2]
[341586920,1731011442216,-500.0,0.00027397,2]
[341586921,1731011442226,-500.0,0.00027397,2]
[341586922,1731011442235,-500.0,0.00027397,2]
[341586923,1731011442244,-500.0,0.00027397,2]
[341586924,1731011442255,-500.0,0.00027397,2]
[341586925,1731011442266,-539.76,0.00027397,2]
[341586926,1731011442275,-2260.02,0.00027397,2]
[341586927,1731011442286,-1549.38,0.00027397,2]
[341586928,1731011442295,-500.0,0.00027397,2]
[341586929,1731011442305,-823.25,0.00027397,2]
[341586930,1731011442314,-1096.41,0.00027397,2]
[341586931,1731011442322,-500.0,0.00027397,2]
[341586933,1731011442331,-500.0,0.00027397,2]
[341586934,1731011442341,-192.28,0.00027397,2]
[341586935,1731011442351,-669.24,0.00027397,2]
[341586936,1731011442363,-789.48,0.00027397,2]
[341586937,1731011442373,-1841.15,0.00027397,2]
[341586938,1731011442382,-500.0,0.00027397,2]
[341586939,1731011442392,-548.44,0.00027397,2]
[341586940,1731011442401,-698.1,0.00027397,2]
[341586941,1731011442410,-569.76,0.00027397,2]
[341586942,1731011442420,-1008.09,0.00027397,2]
[341586943,1731011442429,-500.0,0.00027397,2]
[341586944,1731011442439,-673.81,0.00027397,2]
[341586945,1731011442449,-500.0,0.00027397,2]
[341586946,1731011442460,-500.0,0.00027397,2]
[341586947,1731011442469,-2497.63,0.00027397,2]
[341586948,1731011442479,-500.0,0.00027397,2]
[341586949,1731011442488,-835.05,0.00027397,2]
[341586950,1731011442498,-1408.31,0.00027397,2]
[341586951,1731011442509,-509.48665522,0.00027397,2]
[341586952,1731011442518,-904.6,0.00027397,2]
[341586953,1731011442528,-561.13,0.00027397,2]
[341586954,1731011442537,-500.0,0.00027397,2]
[341586955,1731011442547,-946.87,0.00027397,2]
[341586956,1731011442556,-526.97,0.00027397,2]
[341586958,1731011442565,-923.95939691,0.00027397,2]
[341586961,1731011442580,-5958.71060309,0.00027397,2]
[341586964,1731011442589,-500.0,0.00027397,2]
[341586966,1731011442599,-500.0,0.00027397,2]
[341586968,1731011442611,-403.05546415,0.00027397,2]
[341586969,1731011442629,-1595.98453585,0.00027397,2]
[341586970,1731011442639,-821.23,0.00027397,2]
[341586971,1731011442648,-265.7974957,0.00027397,2]
[341586972,1731011442659,-234.2025043,0.00027397,2]
[341586973,1731011442668,-192.09439484,0.00027397,2]
[341586974,1731011442677,-560.03,0.00027397,2]
[341586975,1731011442686,-687.39,0.00027397,2]
[341586976,1731011442696,-2301.65,0.00027397,2]
[341586978,1731011442705,-696.68494812,0.00027397,2]
[341587019,1731011443176,-396.97505188,0.00027397,2]
[341587020,1731011443186,-500.0,0.00027397,2]
[341587021,1731011443197,-500.0,0.00027397,2]
[341587022,1731011443207,-982.98,0.00027397,2]
[341587023,1731011443216,-991.72,0.00027397,2]
[341587024,1731011443226,-5959.66,0.00027397,2]
[341587025,1731011443235,-500.0,0.00027397,2]
[341587026,1731011443245,-500.0,0.00027397,2]
[341587027,1731011443254,-901.99,0.00027397,2]
[341587028,1731011443263,-500.0,0.00027397,2]
[341587029,1731011443273,-500.0,0.00027397,2]
[341587030,1731011443282,-1677.15,0.00027397,2]
[341587031,1731011443291,-731.06,0.00027397,2]
[341587032,1731011443300,-571.58,0.00027397,2]
[341587033,1731011443309,-500.0,0.00027397,2]
[341587034,1731011443318,-440.33119143,0.00027397,2]
[341587035,1731011443327,-500.0,0.00027397,2]
[341587036,1731011443336,-500.0,0.00027397,2]
[341587038,1731011443345,-1253.48,0.00027397,2]
[341587039,1731011443355,-515.96,0.00027397,2]
[341587041,1731011443365,-6458.46,0.00027397,2]
[341587043,1731011443374,-500.0,0.00027397,2]
[341587045,1731011443383,-500.0,0.00027397,2]
[341587047,1731011443393,-500.0,0.00027397,2]
[341587049,1731011443402,-4746.89,0.00027397,2]
[341587051,1731011443411,-500.0,0.00027397,2]
[341587052,1731011443420,-500.0,0.00027397,2]
[341587054,1731011443431,-500.0,0.00027397,2]
[341587056,1731011443440,-500.0,0.00027397,2]
[341587058,1731011443449,-294.62420541,0.00027397,2]
[341587059,1731011443459,-500.0,0.00027397,2]
[341587060,1731011443471,-500.0,0.00027397,2]
[341587061,1731011443484,-669.2,0.00027397,2]
[341587062,1731011443496,-500.0,0.00027397,2]
[341587063,1731011443508,-500.0,0.00027397,2]
[341587064,1731011443519,-500.0,0.00027397,2]
[341587065,1731011443530,-500.0,0.00027397,2]
[341587067,1731011443542,-667.25,0.00027397,2]
[341587069,1731011443554,-800.33,0.00027397,2]
[341587071,1731011443566,-1000.0,0.00027438,2]
[341587073,1731011443579,-1210.33,0.00027438,2]
[341587075,1731011443590,-588.8,0.00027438,2]
[341587078,1731011443604,-609.69,0.00027438,2]
[341587080,1731011443616,-500.0,0.00027438,2]
[341587082,1731011443629,-500.0,0.00027438,2]
[341587085,1731011443641,-500.0,0.00027438,2]
[341587087,1731011443653,-500.0,0.00027438,2]
[341587089,1731011443664,-729.75,0.00027438,2]
[341587091,1731011443675,-694.0,0.00027438,2]
[341587094,1731011443687,-500.0,0.00027438,2]
[341587098,1731011443699,-605.27,0.00027438,2]
[341587101,1731011443710,-615.66,0.00027438,2]
[341587104,1731011443722,-618.11,0.00027438,2]
[341587106,1731011443732,-740.59,0.00027438,2]
[341587108,1731011443742,-661.7,0.00027438,2]
[341587109,1731011443753,-1146.09,0.00027438,2]
[341587110,1731011443764,-903.61,0.00027438,2]
[341587111,1731011443776,-611.13,0.00027438,2]
[341587112,1731011443788,-500.0,0.00027438,2]
[341587113,1731011443800,-536.6,0.00027438,2]
[341587114,1731011443812,-500.0,0.00027438,2]
[341587116,1731011443825,-1742.22,0.00027438,2]
[341587118,1731011443838,-681.8,0.00027438,2]
[341587120,1731011443850,-500.0,0.00027438,2]
[341587121,1731011443862,-796.28,0.00027438,2]
[341587122,1731011443872,-1014.82,0.00027438,2]
[341587123,1731011443882,-500.0,0.00027438,2]
[341587124,1731011443892,-869.27,0.00027438,2]
[341587125,1731011443905,-1155.46,0.00027438,2]
[341587126,1731011443917,-803.98,0.00027438,2]
[341587127,1731011443929,-500.0,0.00027438,2]
[341587128,1731011443940,-720.32,0.00027438,2]
[341587129,1731011443954,-500.0,0.00027438,2]
[341587130,1731011443967,-702.99,0.00027438,2]
[341587131,1731011443978,-500.0,0.00027438,2]
[341587132,1731011443991,-614.56,0.00027438,2]
[341587133,1731011444002,-500.0,0.00027438,2]
[341587134,1731011444013,-500.0,0.00027438,2]
[341587135,1731011444028,-500.0,0.00027438,2]
[341587136,1731011444040,-1075.73,0.00027438,2]
[341587137,1731011444051,-1171.81,0.00027438,2]
[341587138,1731011444063,-1149.96,0.00027438,2]
[341587139,1731011444074,-937.81,0.00027438,2]
[341587140,1731011444085,-500.0,0.00027438,2]
[341587141,1731011444102,-758.67,0.00027438,2]
[341587142,1731011444113,-500.0,0.00027438,2]
[341587143,1731011444124,-500.0,0.00027438,2]
[341587144,1731011444135,-500.0,0.00027438,2]
[341587145,1731011444146,-726.08,0.00027438,2]
[341587146,1731011444158,-573.46,0.00027438,2]
[341587147,1731011444169,-1475.73,0.00027438,2]
[341587148,1731011444180,-671.65,0.00027438,2]
[341587149,1731011444191,-695.77,0.00027438,2]
[341587150,1731011444202,-500.0,0.00027438,2]
[341587151,1731011444213,-500.0,0.00027438,2]
[341587152,1731011444224,-10075.22,0.00027438,2]
[341587153,1731011444235,-819.35,0.00027438,2]
[341587154,1731011444246,-647.4,0.00027438,2]
[341587155,1731011444258,-956.23,0.00027438,2]
[341587156,1731011444268,-689.92,0.00027438,2]
[341587157,1731011444280,-4249.4,0.00027438,2]
[341587158,1731011444291,-500.0,0.00027438,2]
[341587159,1731011444302,-500.0,0.00027438,2]
[341587160,1731011444313,-929.84,0.00027438,2]
[341587161,1731011444324,-907.42,0.00027438,2]
[341587162,1731011444335,-3743.23,0.00027438,2]
[341587163,1731011444346,-568.89,0.00027438,2]
[341587164,1731011444358,-500.0,0.00027438,2]
[341587165,1731011444370,-500.0,0.00027438,2]
[341587166,1731011444381,-1929.67,0.00027438,2]
[341587167,1731011444392,-500.0,0.00027438,2]
[341587168,1731011444404,-500.0,0.00027438,2]
[341587169,1731011444415,-740.46,0.00027438,2]
[341587170,1731011444426,-500.0,0.00027438,2]
[341587171,1731011444437,-1116.29,0.00027438,2]
[341587172,1731011444449,-599.52,0.00027438,2]
[341587173,1731011444461,-801.48,0.00027438,2]
[341587174,1731011444473,-500.0,0.00027438,2]
[341587175,1731011444485,-821.57,0.00027438,2]
[341587176,1731011444496,-949.5,0.00027438,2]
[341587177,1731011444508,-999.73,0.00027438,2]
[341587178,1731011444520,-1580.55,0.00027438,2]
[341587179,1731011444532,-513.85,0.00027438,2]
[341587180,1731011444543,-1429.73,0.00027438,2]
[341587181,1731011444555,-372.427196,0.00027438,2]
[341587182,1731011444567,-727.36,0.00027438,2]
[341587183,1731011444578,-497.41126381,0.00027438,2]
[341587184,1731011444683,-41.60816418,0.00027397,2]
[341587185,1731011444843,-1463.02183582,0.00027397,2]
[341587186,1731011444855,-1360.22873619,0.00027438,2]
[341587187,1731011444866,-1048.23,0.00027438,2]
[341587188,1731011444877,-185.90086445,0.00027438,2]
[341587189,1731011444890,-2165.78913555,0.00027438,2]
[341587190,1731011444901,-1216.18,0.00027438,2]
[341587191,1731011444912,-2042.58302701,0.00027438,2]
[341587192,1731011445852,-178.47,0.00025273,2]
[341587193,1731011445867,-821.53,0.00027438,2]
[341587194,1731011445888,-371.68697299,0.00027438,2]
[341587195,1731011445901,-641.07,0.00027438,2]
[341587196,1731011445914,-602.15,0.00027438,2]
[341587197,1731011445927,-580.34,0.00027438,2]
[341587198,1731011445939,-649.63,0.00027438,2]
[341587199,1731011445955,-595.99,0.00027438,2]
[341587200,1731011445967,-543.93,0.00027438,2]
[341587201,1731011445979,-733.22092841,0.00027439,2]
[341587202,1731011445996,-266.77907159,0.00027439,2]
[341587203,1731011446009,-11.32321875,0.00027439,2]
[341587204,1731011446026,-488.67678125,0.00027439,2]
[341587205,1731011446038,-497.0219637,0.00027439,2]
[341587206,1731011446054,-2.9780363,0.00027439,2]
[341587207,1731011446066,-247.1054477,0.00027439,2]
[341587208,1731011446152,-752.87,0.00027397,2]
[341587209,1731011446164,-252.8945523,0.00027439,2]